bitfinex-derivatives/quotes_BNBF0:USTF0_20250401
["timestamp","ask_amount","ask_price","bid_price","bid_amount"]
[1743513879591,1.36498218,614.35,613.61,0.27070887]
[1743513879790,1.36498218,614.34,613.61,0.27070887]
[1743513880090,1.36498218,614.33,613.61,0.27070887]
[1743513880390,2.45591968,614.32,613.61,0.27070887]
[1743513880689,1.36498218,614.31,613.61,0.27070887]
[1743513880891,1.36498218,614.3,613.61,0.27070887]
[1743513881185,2.45591968,614.29,613.61,0.27070887]
[1743513881390,1.36498218,614.28,613.61,0.27070887]
[1743513881591,1.36498218,614.27,613.61,0.27070887]
[1743513881887,1.36498218,614.26,613.61,0.27070887]
[1743513882089,2.45591968,614.25,613.61,0.27070887]
[1743513882285,1.36498218,614.24,613.61,0.27070887]
[1743513882486,1.36498218,614.23,613.61,0.27070887]
[1743513882692,1.3636298,614.22,613.61,0.27070887]
[1743513882892,1.3636298,614.21,613.61,0.27070887]
[1743513883090,1.0909375,614.23,613.61,0.27070887]
[1743513883294,2.45454519,614.22,613.61,0.27070887]
[1743513883491,1.0909375,614.22,613.61,0.27070887]
[1743513883892,1.0909375,614.21,613.61,0.27070887]
[1743513884288,1.0909375,614.2,613.61,0.27070887]
[1743513884793,1.096,614.24,613.61,0.27070887]
[1743513885095,1.36347529,614.23,613.61,0.27070887]
[1743513885293,1.08975371,614.23,613.61,0.27070887]
[1743513885493,2.45314499,614.22,613.61,0.27070887]
[1743513885792,1.08975371,614.22,613.61,0.27070887]
[1743513885992,1.08975371,614.21,613.61,0.27070887]
[1743513886493,1.08975371,614.2,613.61,0.27070887]
[1743513886895,1.08975371,614.19,613.61,0.27070887]
[1743513887593,0.28343494,614.23,613.61,0.27070887]
[1743513887789,1.36327523,614.22,613.6,1.998]
[1743513887987,0.28343494,614.23,613.6,1.998]
[1743513888189,1.36321545,614.22,613.6,1.998]
[1743513888391,1.08960855,614.21,613.6,1.998]
[1743513888992,1.08960855,614.2,613.6,1.998]
[1743513889187,1.08960855,614.19,613.6,1.998]
[1743513889495,1.08960855,614.19,613.6,0.522]
[1743513890090,1.08960855,614.18,613.6,0.522]
[1743513890894,0.28344648,614.22,613.6,0.522]
[1743513891190,1.096,614.24,613.6,0.522]
[1743513891396,0.28344879,614.21,613.6,0.522]
[1743513892295,0.28344879,614.21,613.61,1.538]
[1743513894097,1.096,614.24,613.61,1.538]
[1743513894494,0.28343148,614.2,613.61,1.538]
[1743513895498,0.28343148,614.2,613.62,0.27044881]
[1743513895698,0.28343148,614.2,613.61,1.538]
[1743513896901,0.28343148,614.2,613.62,0.27059839]
[1743513897202,0.32539902,614.63,613.61,1.538]
[1743513897397,0.2834234,614.19,613.61,1.538]
[1743513897901,0.32539902,614.63,613.62,0.27061176]
[1743513898100,0.32539902,614.63,613.61,1.538]
[1743513898500,0.28331379,614.62,613.62,1.292]
[1743513898800,1.68804418,614.61,613.62,1.292]
[1743513899001,2.45187232,614.6,613.62,1.292]
[1743513899200,1.68805477,614.59,613.62,1.292]
[1743513899495,4.12934005,614.58,613.62,1.292]
[1743513899801,1.6881076,614.57,613.62,1.292]
[1743513899994,2.77735064,614.56,613.62,1.292]
[1743513900199,1.68811819,614.55,613.62,1.292]
[1743513900499,2.45191456,614.54,613.62,1.292]
[1743513900700,1.36267682,614.53,613.62,1.292]
[1743513900999,1.36267682,614.52,613.62,1.292]
[1743513901193,2.45191456,614.51,613.62,1.292]
[1743513901392,2.45191456,614.51,613.63,1.246]
[1743513901393,1.36270436,614.5,613.63,1.246]
[1743513901598,1.36270436,614.49,613.63,1.246]
[1743513901798,2.4519421,614.48,613.63,1.246]
[1743513901992,1.36270436,614.47,613.63,1.246]
[1743513902195,1.36270436,614.46,613.63,1.246]
[1743513902501,1.36270436,614.45,613.63,1.246]
[1743513902794,1.36270436,614.44,613.63,1.246]
[1743513903001,1.36270436,614.43,613.63,1.246]
[1743513903202,1.36270436,614.42,613.63,1.246]
[1743513903395,1.36270436,614.41,613.63,1.246]
[1743513903594,1.36270436,614.4,613.63,1.246]
[1743513903802,1.36270436,614.39,613.63,1.246]
[1743513903997,2.4519421,614.38,613.63,1.246]
[1743513904303,2.4519421,614.37,613.63,1.246]
[1743513904503,1.36270436,614.36,613.63,1.246]
[1743513904706,2.4519421,614.35,613.63,1.246]
[1743513904897,1.36270436,614.34,613.63,1.246]
[1743513905204,1.36270436,614.33,613.63,1.246]
[1743513905404,2.4519421,614.32,613.63,1.246]
[1743513905598,1.36270436,614.31,613.63,1.246]
[1743513905799,1.36270436,614.3,613.63,1.246]
[1743513905998,0.28344417,614.42,613.63,1.246]
[1743513905999,2.4519421,614.29,613.63,1.246]
[1743513906303,1.36270436,614.28,613.63,1.246]
[1743513906503,2.4519421,614.27,613.63,1.246]
[1743513906700,1.36270436,614.26,613.63,1.246]
[1743513906905,1.36270436,614.25,613.63,1.246]
[1743513907104,2.4519421,614.24,613.63,1.246]
[1743513907399,1.36270436,614.23,613.63,1.246]
[1743513907601,1.36270436,614.22,613.64,0.522]
[1743513907798,1.36270436,614.21,613.64,0.522]
[1743513908002,1.36270436,614.2,613.64,0.522]
[1743513908204,1.36270436,614.19,613.64,0.522]
[1743513908406,1.36270436,614.18,613.64,0.522]
[1743513908605,1.36270436,614.17,613.64,0.522]
[1743513908806,1.36270436,614.16,613.64,0.522]
[1743513909006,1.36270436,614.15,613.64,0.522]
[1743513909206,1.36270436,614.14,613.64,0.522]
[1743513909410,1.36270436,614.13,613.64,0.522]
[1743513909604,1.36270436,614.12,613.64,0.522]
[1743513909805,1.36270436,614.11,613.64,0.522]
[1743513910007,1.36270436,614.1,613.64,0.522]
[1743513910204,1.36270436,614.09,613.64,0.522]
[1743513910405,2.4519421,614.08,613.64,0.522]
[1743513910605,1.36270436,614.07,613.64,0.522]
[1743513910801,1.36270436,614.06,613.64,0.522]
[1743513911002,1.36270436,614.05,613.64,0.522]
[1743513911305,1.36270436,614.04,613.64,0.522]
[1743513911501,1.08923774,614.06,613.64,0.522]
[1743513911706,1.08923774,614.03,613.64,0.522]
[1743513912103,1.08923774,614.02,613.64,0.522]
[1743513912507,1.37273502,614.02,613.64,0.522]
[1743513912706,0.28349728,614.02,613.64,0.522]
[1743513915112,0.32544137,614.55,613.64,0.522]
[1743513915311,1.36362808,614.54,613.64,0.522]
[1743513915512,0.28343725,614.01,613.64,0.522]
[1743513915812,0.32545197,614.53,613.64,0.522]
[1743513916014,1.36363346,614.52,613.64,0.522]
[1743513916212,1.36363346,614.51,613.64,0.522]
[1743513916512,2.45363183,614.5,613.64,0.522]
[1743513916711,1.36363346,614.49,613.64,0.522]
[1743513916914,1.36363346,614.48,613.64,0.522]
[1743513917211,2.45363183,614.47,613.64,0.522]
[1743513917417,1.36363346,614.46,613.64,0.522]
[1743513917713,2.45363183,614.45,613.64,0.522]
[1743513917905,1.36363346,614.44,613.64,0.522]
[1743513918109,2.45363183,614.43,613.64,0.522]
[1743513918312,1.36363346,614.42,613.64,0.522]
[1743513918512,1.36363346,614.41,613.64,0.522]
[1743513918714,1.36363346,614.4,613.64,0.522]
[1743513918913,1.36363346,614.39,613.64,0.522]
[1743513919111,1.36363346,614.38,613.64,0.522]
[1743513919312,1.36363346,614.37,613.64,0.522]
[1743513919515,1.36363346,614.36,613.64,0.522]
[1743513919714,1.36363346,614.35,613.65,1.261]
[1743513919914,1.36363346,614.34,613.65,1.261]
[1743513920212,2.45363183,614.33,613.65,1.261]
[1743513920415,1.36363346,614.32,613.65,1.261]
[1743513920615,1.36363346,614.31,613.65,1.261]
[1743513920811,2.45363183,614.3,613.65,1.261]
[1743513921118,2.45363183,614.29,613.65,1.261]
[1743513921417,1.36363346,614.28,613.65,1.261]
[1743513921617,1.36363346,614.27,613.65,1.261]
[1743513921818,1.36363346,614.26,613.65,1.261]
[1743513922018,1.36363346,614.25,613.65,1.261]
[1743513922318,2.45363183,614.24,613.65,1.261]
[1743513922617,1.36363346,614.23,613.65,1.261]
[1743513922818,1.36363346,614.22,613.65,1.261]
[1743513923019,1.36363346,614.21,613.65,1.261]
[1743513923218,1.36363346,614.2,613.65,1.261]
[1743513923412,1.36363346,614.19,613.65,1.261]
[1743513923614,1.36363346,614.18,613.65,1.261]
[1743513923815,1.36363346,614.17,613.65,1.261]
[1743513924017,1.36363346,614.16,613.65,1.261]
[1743513924216,1.36363346,614.15,613.65,1.261]
[1743513924414,1.36363346,614.14,613.65,1.261]
[1743513924617,1.36363346,614.13,613.65,1.261]
[1743513924817,1.36363346,614.12,613.65,1.261]
[1743513925014,1.36363346,614.11,613.65,1.261]
[1743513925216,2.45363183,614.1,613.65,1.261]
[1743513925417,1.36363346,614.09,613.65,1.261]
[1743513925718,1.08999837,614.1,613.65,1.261]
[1743513925915,0.28347188,614.15,613.65,1.261]
[1743513926316,1.08997989,614.14,613.65,1.261]
[1743513926722,1.08997989,614.13,613.65,1.261]
[1743513927423,1.37344253,614.12,613.65,1.261]
[1743513928023,1.08997989,614.11,613.65,1.261]
[1743513928724,0.28346264,614.12,613.65,2.857]
[1743513929722,0.28346264,614.12,613.66,0.27055938]
[1743513930125,1.106,614.22,613.66,0.27055938]
[1743513930419,0.28345225,614.11,613.66,0.27055938]
[1743513930826,1.106,614.22,613.66,1.50855938]
[1743513931124,0.28345225,614.1,613.67,0.27055938]
[1743513931325,1.106,614.22,613.67,0.27055938]
[1743513931626,0.28345225,614.09,613.67,0.27055938]
[1743513932024,1.106,614.22,613.67,0.27055938]
[1743513932325,0.28346033,614.08,613.67,0.27055938]
[1743513932527,1.106,614.22,613.67,0.27055938]
[1743513932727,2.45416984,614.21,613.67,0.27055938]
[1743513932930,0.28345918,614.07,613.67,0.27055938]
[1743513933129,1.09024801,614.2,613.67,0.27055938]
[1743513933428,0.28346033,614.06,613.67,0.27055938]
[1743513933822,1.09024801,614.19,613.67,0.27055938]
[1743513934026,0.28345687,614.05,613.67,0.27055938]
[1743513934221,0.28345687,614.05,613.66,1.238]
[1743513934427,1.09024801,614.19,613.66,1.238]
[1743513934628,0.28345687,614.04,613.66,1.238]
[1743513935123,1.36398039,614.16,613.66,1.238]
[1743513935325,0.28345802,614.03,613.66,1.238]
[1743513935727,1.36403127,614.21,613.66,1.238]
[1743513935927,0.28346149,614.02,613.66,1.238]
[1743513939230,1.36434479,614.18,613.66,1.238]
[1743513939426,0.2834638,614.01,613.66,1.238]
[1743513939832,1.106,614.22,613.66,1.238]
[1743513939833,1.36434479,614.15,613.66,1.238]
[1743513940132,0.28346726,614.0,613.66,1.238]
[1743513940333,1.36434479,614.13,613.66,1.238]
[1743513940533,1.36434479,614.12,613.66,1.238]
[1743513940736,0.28346957,613.99,613.66,1.238]
[1743513940934,1.36440843,614.21,613.66,1.238]
[1743513941135,1.36440843,614.2,613.66,1.238]
[1743513941335,0.28346033,613.98,613.66,1.238]
[1743513941535,1.36440843,614.18,613.66,1.238]
[1743513941933,0.2834638,613.97,613.66,1.238]
[1743513942134,1.36440843,614.16,613.66,1.238]
[1743513942328,1.36440843,614.15,613.66,1.238]
[1743513942533,1.36440843,614.14,613.66,1.238]
[1743513942831,1.36440843,614.13,613.66,1.238]
[1743513943036,1.36440843,614.12,613.66,1.238]
[1743513943232,1.36440843,614.11,613.66,1.238]
[1743513943437,1.3741884,614.11,613.66,1.238]
[1743513944041,1.09071652,614.1,613.66,1.238]
[1743513944540,1.09071652,614.09,613.66,1.238]
[1743513945040,1.09071652,614.08,613.66,1.238]
[1743513945640,0.28347188,614.11,613.66,1.238]
[1743513948143,1.106,614.22,613.66,1.238]
[1743513948339,1.36471437,614.21,613.66,1.238]
[1743513948538,0.28343956,614.1,613.66,1.238]
[1743513948942,1.09083128,614.2,613.66,1.238]
[1743513949138,0.2834384,614.09,613.66,1.238]
[1743513949540,1.106,614.22,613.66,1.238]
[1743513949743,0.28343956,614.08,613.66,1.238]
[1743513950044,1.09083953,614.21,613.66,1.238]
[1743513950243,0.32545726,614.52,613.66,1.238]
[1743513950445,0.28343609,614.07,613.66,1.238]
[1743513950747,1.36476724,614.5,613.67,0.27064446]
[1743513950945,2.45564373,614.49,613.67,0.27064446]
[1743513951140,0.28340147,614.06,613.67,0.27064446]
[1743513951345,1.36476724,614.47,613.67,0.27064446]
[1743513951644,1.36476724,614.46,613.67,0.27064446]
[1743513951840,1.36480439,614.45,613.67,0.27064446]
[1743513952145,2.45570565,614.44,613.67,0.27064446]
[1743513952345,1.36480439,614.43,613.67,0.27064446]
[1743513952540,2.45570565,614.42,613.66,1.238]
[1743513952845,2.45570565,614.41,613.67,0.27068195]
[1743513953042,1.36480439,614.4,613.67,0.27068195]
[1743513953244,1.36480439,614.39,613.67,0.27068195]
[1743513953547,2.45570565,614.38,613.67,0.27068195]
[1743513953742,1.36480439,614.37,613.67,0.27068195]
[1743513953944,1.36480439,614.36,613.67,0.27068195]
[1743513954148,1.36480439,614.35,613.67,0.27068195]
[1743513954447,1.36480439,614.34,613.67,0.27068195]
[1743513954646,1.36480439,614.33,613.67,0.27068195]
[1743513954847,1.36480439,614.32,613.67,1.32868195]
[1743513955050,1.36480439,614.31,613.68,0.27068195]
[1743513955243,2.45570565,614.3,613.68,0.27068195]
[1743513955445,2.45570565,614.3,613.67,1.058]
[1743513955446,1.36480439,614.29,613.67,1.058]
[1743513955645,1.36480439,614.28,613.68,0.27081597]
[1743513955848,1.36480439,614.27,613.68,0.27081597]
[1743513956044,1.36480439,614.26,613.68,0.27081597]
[1743513956249,1.09090126,614.28,613.68,0.27081597]
[1743513956250,1.36480439,614.25,613.68,1.22781597]
[1743513956550,1.36480439,614.24,613.69,0.27081597]
[1743513956751,1.36480439,614.23,613.69,0.27081597]
[1743513956950,1.36480439,614.22,613.69,0.27081597]
[1743513957148,1.36480439,614.21,613.7,0.27072796]
[1743513957349,1.36480439,614.2,613.71,0.27072796]
[1743513957652,0.28343956,614.21,613.72,0.27072796]
[1743513957951,1.36530374,614.2,613.73,0.27072796]
[1743513958150,1.36530374,614.19,613.68,0.957]
[1743513958345,1.36530374,614.18,613.69,0.2707206]
[1743513958546,2.456205,614.17,613.69,0.2707206]
[1743513958747,1.36528204,614.16,613.69,0.2707206]
[1743513958945,1.36528204,614.15,613.69,0.2707206]
[1743513959149,1.09090126,614.14,613.68,0.957]
[1743513959650,1.09090126,614.13,613.68,0.957]
[1743513960048,0.28343956,614.21,613.68,0.957]
[1743513960246,1.36519685,614.2,613.68,0.957]
[1743513960449,1.36519685,614.19,613.68,0.957]
[1743513960753,1.36519685,614.18,613.68,0.957]
[1743513960951,1.36519685,614.17,613.68,0.957]
[1743513961251,1.09116845,614.16,613.68,0.957]
[1743513961649,1.09116845,614.15,613.68,0.957]
[1743513962051,1.09116845,614.14,613.68,0.957]
[1743513962651,1.09116845,614.13,613.68,0.957]
[1743513963253,1.367,614.4,613.68,0.957]
[1743513963552,0.28344994,614.12,613.68,0.957]
[1743513963749,1.367,614.4,613.68,0.957]
[1743513963953,1.36496676,614.39,613.68,0.957]
[1743513964153,0.28341993,614.11,613.68,0.957]
[1743513964348,1.09100084,614.38,613.68,0.957]
[1743513964550,2.45592496,614.37,613.68,0.957]
[1743513964755,0.28342109,614.1,613.68,0.957]
[1743513965050,1.367,614.4,613.69,0.27036163]
[1743513965255,0.28341647,614.09,613.69,0.27036163]
[1743513965655,1.367,614.4,613.69,0.79236163]
[1743513965856,0.28341301,614.08,613.7,0.27036163]
[1743513966157,1.36477095,614.38,613.7,0.27036163]
[1743513966356,2.45559392,614.37,613.7,0.27036163]
[1743513966554,2.45559392,614.37,613.69,0.522]
[1743513966555,1.36477095,614.36,613.69,0.522]
[1743513966755,1.36477095,614.35,613.69,0.522]
[1743513966956,1.36477095,614.34,613.69,0.522]
[1743513967156,1.36477095,614.33,613.69,0.522]
[1743513967354,1.36477095,614.32,613.69,0.522]
[1743513967558,1.36477095,614.31,613.69,0.522]
[1743513967753,1.36477095,614.3,613.69,0.522]
[1743513967957,1.36477095,614.29,613.69,0.522]
[1743513968258,1.36477095,614.28,613.69,0.522]
[1743513968455,1.36477095,614.27,613.69,0.522]
[1743513968758,2.45559392,614.26,613.69,0.522]
[1743513968959,1.36477095,614.25,613.7,0.27032964]
[1743513969163,2.45559392,614.24,613.7,0.27032964]
[1743513969358,1.36477095,614.23,613.7,0.27032964]
[1743513969558,2.45541017,614.22,613.69,0.522]
[1743513969754,1.3645872,614.21,613.71,1.139]
[1743513969953,1.09082297,614.2,613.71,1.139]
[1743513970361,1.09082297,614.2,613.72,1.496]
[1743513970562,1.09082297,614.19,613.72,1.496]
[1743513971158,1.09082297,614.18,613.72,1.496]
[1743513971559,1.09082297,614.17,613.72,1.496]
[1743513972158,1.09082297,614.16,613.72,1.496]
[1743513972563,1.37425675,614.16,613.72,1.496]
[1743513972767,1.09082297,614.15,613.72,1.496]
[1743513973261,0.28343378,614.16,613.72,1.496]
[1743513975265,1.367,614.4,613.72,1.496]
[1743513975465,0.28340724,614.15,613.72,1.496]
[1743513975866,1.367,614.4,613.72,1.496]
[1743513976066,1.36489071,614.39,613.72,1.496]
[1743513976262,1.36489071,614.38,613.72,1.496]
[1743513976462,1.36489071,614.37,613.72,1.496]
[1743513976667,1.36489071,614.36,613.72,1.496]
[1743513976867,1.36489071,614.35,613.72,1.496]
[1743513977163,1.36489071,614.34,613.72,1.496]
[1743513977369,1.36489071,614.33,613.72,1.496]
[1743513977561,1.36489071,614.32,613.72,1.496]
[1743513977767,1.36489071,614.31,613.72,1.496]
[1743513977964,1.36489071,614.3,613.73,1.475]
[1743513978165,1.36489071,614.29,613.73,1.475]
[1743513978366,1.36489071,614.28,613.73,1.475]
[1743513978569,1.36489071,614.27,613.73,1.475]
[1743513978769,2.45585843,614.26,613.73,1.475]
[1743513979070,1.36489071,614.25,613.73,1.475]
[1743513979271,1.36489071,614.24,613.73,1.475]
[1743513979471,1.36489071,614.23,613.73,1.475]
[1743513979671,1.09096772,614.23,613.73,1.475]
[1743513979870,1.09096772,614.22,613.73,1.475]
[1743513980667,1.024,614.25,613.73,1.475]
[1743513981170,1.09102644,614.24,613.73,1.475]
[1743513981469,1.37442445,614.24,613.73,1.475]
[1743513981670,1.09102644,614.23,613.73,1.475]
[1743513982070,0.28339801,614.24,613.73,1.475]
[1743513983266,1.09094573,614.23,613.73,1.475]
[1743513983467,1.09094573,614.23,613.74,0.522]
[1743513983674,0.28339801,614.24,613.74,0.522]
[1743513984071,0.28339801,614.24,613.75,0.27020361]
[1743513984274,1.024,614.25,613.74,0.522]
[1743513984470,1.024,614.25,613.75,0.27014401]
[1743513985473,1.024,614.25,613.76,0.27034293]
[1743513985878,1.024,614.25,613.77,0.27034293]
[1743513986078,1.024,614.25,613.75,0.27034293]
[1743513986679,1.09049567,614.24,613.75,0.27034293]
[1743513986880,1.09049567,614.23,613.75,0.27034293]
[1743513987079,1.09049567,614.23,613.74,0.522]
[1743513987281,1.09049567,614.23,613.75,0.27041623]
[1743513987479,0.28341647,614.22,613.75,0.27041623]
[1743513987678,1.09049567,614.21,613.74,0.522]
[1743513988082,1.09049567,614.2,613.74,0.522]
[1743513988980,1.09049567,614.19,613.74,0.522]
[1743513989383,0.28341647,614.22,613.74,0.522]
[1743513989888,2.45505281,614.21,613.74,0.522]
[1743513990186,1.09060641,614.21,613.74,0.522]
[1743513990388,1.09060641,614.2,613.74,0.522]
[1743513990580,1.37404135,614.2,613.74,0.522]
[1743513990886,1.09060641,614.19,613.74,0.522]
[1743513991285,1.36453004,614.18,613.74,0.522]
[1743513991481,1.09060641,614.19,613.74,0.522]
[1743513991686,1.09060641,614.17,613.74,0.522]
[1743513991985,1.09060641,614.16,613.74,0.522]
[1743513992680,1.09060641,614.15,613.74,0.522]
[1743513993087,1.09060641,614.14,613.74,0.522]
[1743513993487,1.37406097,614.14,613.74,0.522]
[1743513993686,1.37406097,614.14,613.74,2.138]
[1743513993888,1.09060641,614.13,613.74,2.138]
[1743513995086,1.09060641,614.12,613.74,2.138]
[1743513995287,1.09060641,614.11,613.74,2.138]
[1743513995483,1.3647171,614.1,613.74,2.138]
[1743513995688,1.3647171,614.09,613.74,2.138]
[1743513995891,1.09060641,614.1,613.74,2.138]
[1743513995892,1.3647171,614.08,613.74,2.138]
[1743513996087,1.36480014,614.07,613.74,2.138]
[1743513996289,1.36469287,614.06,613.74,2.138]
[1743513996484,0.28347765,614.06,613.74,2.138]
[1743513996991,1.09060641,614.05,613.74,2.138]
[1743513997691,1.09060641,614.04,613.74,2.138]
[1743513998588,1.09060641,614.03,613.74,2.138]
[1743513998986,1.09060641,614.02,613.74,2.138]
[1743513999590,0.28349035,614.01,613.74,2.138]
[1743514005292,1.36399199,614.12,613.74,2.138]
[1743514005498,0.28348573,614.0,613.74,2.138]
[1743514005899,1.09008051,614.11,613.74,2.138]
[1743514006098,1.09008051,614.1,613.74,2.138]
[1743514006497,1.09008051,614.1,613.74,1.616]
[1743514006698,1.09008051,614.09,613.74,1.616]
[1743514007000,1.37357548,614.09,613.74,1.616]
[1743514007401,1.09008051,614.08,613.74,1.616]
[1743514008097,1.09008051,614.07,613.74,1.616]
[1743514008498,1.37357779,614.07,613.74,1.616]
[1743514008700,0.28349728,614.07,613.74,1.616]
[1743514009801,2.45304334,614.06,613.74,1.616]
[1743514010002,1.36332172,614.05,613.74,1.616]
[1743514010203,2.45304334,614.04,613.74,1.616]
[1743514010403,1.36332172,614.03,613.74,1.616]
[1743514010603,1.36332172,614.02,613.74,1.616]
[1743514010799,1.36332172,614.01,613.74,1.616]
[1743514010998,2.45304334,614.0,613.74,1.616]
[1743514011303,1.36332172,613.99,613.74,1.616]
[1743514011503,2.45304334,613.98,613.74,1.616]
[1743514011803,1.36332172,613.97,613.74,1.616]
[1743514012004,1.36332172,613.96,613.74,1.616]
[1743514012203,1.36332172,613.95,613.74,1.616]
[1743514012503,1.36332172,613.94,613.74,1.616]
[1743514012704,1.36332172,613.93,613.74,1.616]
[1743514013003,1.36332172,613.92,613.67,0.522]
[1743514013200,1.36332172,613.91,613.67,0.522]
[1743514013404,1.36332172,613.9,613.67,0.522]
[1743514013602,1.08972162,613.9,613.67,0.522]
[1743514014405,1.36054214,613.97,613.67,0.522]
[1743514014599,0.28357467,613.89,613.67,0.522]
[1743514014799,1.006,614.14,613.67,0.522]
[1743514014998,2.44802969,614.13,613.67,0.522]
[1743514015197,1.36047885,614.12,613.67,0.522]
[1743514015404,2.44802969,614.11,613.67,0.522]
[1743514015603,1.36047885,614.1,613.67,0.522]
[1743514015903,2.44802969,614.09,613.67,0.522]
[1743514016099,1.36047885,614.08,613.67,0.522]
[1743514016299,1.36047885,614.07,613.67,0.522]
[1743514016503,2.44802969,614.06,613.67,0.522]
[1743514016706,1.36047885,614.05,613.67,2.043]
[1743514016905,1.36047885,614.04,613.67,2.043]
[1743514017205,2.44802969,614.03,613.67,2.043]
[1743514017503,1.36047885,614.02,613.67,2.043]
[1743514017706,1.36047885,614.01,613.67,2.043]
[1743514017904,1.08755084,614.02,613.67,2.043]
[1743514018105,1.08755084,614.01,613.67,2.043]
[1743514018603,1.3710793,614.01,613.67,2.043]
[1743514018798,0.28352846,614.01,613.67,2.043]
[1743514020302,1.006,614.14,613.67,2.043]
[1743514020502,0.28349959,614.0,613.67,2.043]
[1743514020905,1.08639085,614.12,613.67,2.043]
[1743514021304,1.08639085,614.11,613.67,2.043]
[1743514021499,1.3698916,614.11,613.67,2.043]
[1743514021903,1.08639085,614.1,613.67,2.043]
[1743514022303,1.08639085,614.09,613.67,2.043]
[1743514023110,0.28350075,614.11,613.67,2.043]
[1743514023300,1.006,614.14,613.67,2.043]
[1743514023905,2.44524447,614.13,613.67,2.043]
[1743514024102,1.35898274,614.12,613.67,2.043]
[1743514024305,1.35898274,614.11,613.67,2.043]
[1743514024506,1.35898274,614.1,613.67,2.043]
[1743514024807,2.44527033,614.09,613.67,2.043]
[1743514025010,1.35898274,614.08,613.67,2.043]
[1743514025510,1.08628759,614.09,613.67,2.043]
[1743514025712,1.08628759,614.07,613.67,2.043]
[1743514026105,1.08628759,614.06,613.67,2.043]
[1743514026604,1.08628759,614.05,613.67,2.043]
[1743514027009,1.08628759,614.04,613.67,2.043]
[1743514027509,0.2835146,614.06,613.67,2.043]
[1743514028004,1.08631554,614.05,613.67,2.043]
[1743514028807,2.44528409,614.04,613.67,2.043]
[1743514029005,1.35896855,614.03,613.67,2.043]
[1743514029205,1.08631554,614.02,613.67,2.043]
[1743514029610,1.08631554,614.01,613.67,2.043]
[1743514030106,0.28354117,614.02,613.67,2.043]
[1743514030810,0.28354117,614.02,613.67,0.522]
[1743514031006,1.0862931,614.01,613.67,0.522]
[1743514031511,0.28354117,614.02,613.67,0.522]
[1743514032211,1.35880068,614.11,613.67,0.522]
[1743514032410,1.35880068,614.1,613.67,0.522]
[1743514032609,0.28353308,614.01,613.67,0.522]
[1743514032917,1.35880068,614.08,613.67,0.522]
[1743514033110,1.35880068,614.07,613.65,0.956]
[1743514033414,1.35880068,614.06,613.65,0.956]
[1743514033715,1.35880068,614.05,613.65,0.956]
[1743514034014,1.35880068,614.04,613.65,0.956]
[1743514034215,1.35880068,614.03,613.65,0.956]
[1743514034414,1.35880068,614.02,613.65,0.956]
[1743514034616,1.35880068,614.01,613.65,0.956]
[1743514034816,1.0861827,614.03,613.65,0.956]
[1743514035012,1.35882014,614.02,613.65,0.956]
[1743514035217,1.35882014,614.01,613.65,0.956]
[1743514035410,2.44500284,614.0,613.65,0.956]
[1743514035613,1.35882014,613.99,613.65,0.956]
[1743514035813,1.35882014,613.98,613.65,0.956]
[1743514036014,2.44500284,613.97,613.65,0.956]
[1743514036214,1.35882014,613.96,613.65,0.956]
[1743514036412,1.35882014,613.95,613.65,0.956]
[1743514036614,1.35882014,613.94,613.65,0.956]
[1743514036915,1.35882014,613.93,613.65,0.956]
[1743514037114,2.44500284,613.92,613.65,0.956]
[1743514037317,1.0861827,613.91,613.65,0.956]
[1743514037915,1.0861827,613.9,613.65,0.956]
[1743514038418,1.35867297,613.95,613.65,0.956]
[1743514038618,1.35867297,613.94,613.65,0.956]
[1743514038818,1.08605642,613.93,613.65,0.956]
[1743514039214,1.006,614.14,613.65,0.956]